[Event "*** Titled Tuesday Blitz"]
[Site "Chess.com"]
[Date "2019.11.05"]
[Round "7"]
[White "Oligan22"]
[Black "StockholmMissile"]
[Result "1-0"]
[WhiteElo "2464"]
[BlackElo "2296"]
[TimeControl "180+2"]
[EndTime "14:37:31 PST"]
[Termination "Oligan22 won by resignation"]

1. e4 {[%clk 0:03:01.9]} 1... e5 {[%clk 0:03:00.6]} 2. Nf3 {[%clk 0:03:02.9]}
2... Nc6 {[%clk 0:03:01.9]} 3. Bb5 {[%clk 0:03:03.6]} 3... a6 {[%clk 0:03:03.2]}
4. Ba4 {[%clk 0:03:04.3]} 4... Nf6 {[%clk 0:03:04.3]} 5. O-O {[%clk 0:03:04.6]}
5... Be7 {[%clk 0:03:05.5]} 6. Re1 {[%clk 0:03:05.5]} 6... b5 {[%clk 0:03:06.2]}
7. Bb3 {[%clk 0:03:06.4]} 7... d6 {[%clk 0:03:07.5]} 8. c3 {[%clk 0:03:07.7]}
8... O-O {[%clk 0:03:08]} 9. h3 {[%clk 0:03:08.8]} 9... Nb8 {[%clk 0:03:08.9]}
10. d4 {[%clk 0:03:08.6]} 10... Nbd7 {[%clk 0:03:09.8]} 11. Nbd2 {[%clk
0:03:05.1]} 11... Bb7 {[%clk 0:03:06.1]} 12. a4 {[%clk 0:03:00.3]} 12... c5
{[%clk 0:03:06.4]} 13. d5 {[%clk 0:03:01]} 13... c4 {[%clk 0:03:07.3]} 14. Bc2
{[%clk 0:03:02.2]} 14... Qc7 {[%clk 0:03:03.2]} 15. Nf1 {[%clk 0:02:56]} 15...
g6 {[%clk 0:03:00.7]} 16. Bh6 {[%clk 0:02:50.9]} 16... Rfb8 {[%clk 0:02:57.7]}
17. Qd2 {[%clk 0:02:45.6]} 17... Nc5 {[%clk 0:02:45.9]} 18. Ng3 {[%clk 0:02:44]}
18... bxa4 {[%clk 0:02:42.7]} 19. Bxa4 {[%clk 0:02:43.8]} 19... Nxa4 {[%clk
0:02:43.5]} 20. Rxa4 {[%clk 0:02:44.5]} 20... Bc8 {[%clk 0:02:44.4]} 21. Rea1
{[%clk 0:02:44.1]} 21... Ra7 {[%clk 0:02:32.7]} 22. Qe2 {[%clk 0:02:41.5]} 22...
Rab7 {[%clk 0:01:53.6]} 23. R1a2 {[%clk 0:02:25.3]} 23... Bd7 {[%clk 0:01:51.6]}
24. Rxc4 {[%clk 0:02:25.8]} 24... Qd8 {[%clk 0:01:47.9]} 25. Rb4 {[%clk
0:02:14]} 25... Rxb4 {[%clk 0:01:44.9]} 26. cxb4 {[%clk 0:02:15.9]} 26... Rxb4
{[%clk 0:01:46.1]} 27. Qxa6 {[%clk 0:02:12.2]} 27... Nxe4 {[%clk 0:01:36.4]} 28.
Nxe4 {[%clk 0:02:13.2]} 28... Rxe4 {[%clk 0:01:37.2]} 29. Qb7 {[%clk 0:02:14.4]}
29... Ra4 {[%clk 0:01:36.7]} 30. Rxa4 {[%clk 0:02:07.2]} 30... Bxa4 {[%clk
0:01:38.6]} 31. b4 {[%clk 0:02:01.7]} 31... Bf8 {[%clk 0:01:29.1]} 32. Bg5
{[%clk 0:02:01.9]} 32... f6 {[%clk 0:01:29.9]} 33. Be3 {[%clk 0:01:57.4]} 33...
Qd7 {[%clk 0:01:25.1]} 34. Qa8 {[%clk 0:01:56.4]} 34... Kf7 {[%clk 0:01:16.2]}
35. Nd2 {[%clk 0:01:48]} 35... Qb5 {[%clk 0:01:12.6]} 36. Qa7+ {[%clk
0:01:44.9]} 36... Be7 {[%clk 0:01:04.5]} 37. Ne4 {[%clk 0:01:31.7]} 37... Qxb4
{[%clk 0:01:04]} 38. Nc5 {[%clk 0:00:40]} 38... Bc2 {[%clk 0:00:19.1]} 39. Ne6
{[%clk 0:00:35.6]} 39... Bf5 {[%clk 0:00:20.1]} 40. Nd8+ {[%clk 0:00:33.6]}
40... Ke8 {[%clk 0:00:12.7]} 41. Qxe7+ {[%clk 0:00:33.4]} 1-0

[Event "*** Titled Tuesday Blitz"]
[Site "Chess.com"]
[Date "2019.11.05"]
[Round "7"]
[White "VerdeNotte"]
[Black "Alexander_Zubov"]
[Result "1-0"]
[WhiteElo "2788"]
[BlackElo "2934"]
[TimeControl "180+2"]
[EndTime "14:37:36 PST"]
[Termination "VerdeNotte won on time"]

1. e4 {[%clk 0:03:01.9]} 1... Nc6 {[%clk 0:02:58.6]} 2. d4 {[%clk 0:02:58.2]}
2... e5 {[%clk 0:02:58.7]} 3. Nf3 {[%clk 0:02:54.2]} 3... exd4 {[%clk
0:02:58.9]} 4. Nxd4 {[%clk 0:02:55.6]} 4... Bc5 {[%clk 0:02:58.7]} 5. Nxc6
{[%clk 0:02:56.7]} 5... bxc6 {[%clk 0:02:58.6]} 6. Bd3 {[%clk 0:02:55.7]} 6...
Qh4 {[%clk 0:02:58]} 7. O-O {[%clk 0:02:55.7]} 7... Nf6 {[%clk 0:02:57.6]} 8.
Qf3 {[%clk 0:02:44.1]} 8... O-O {[%clk 0:02:53.6]} 9. h3 {[%clk 0:02:37.1]} 9...
Re8 {[%clk 0:02:41.2]} 10. Bf4 {[%clk 0:02:34]} 10... d6 {[%clk 0:02:36.5]} 11.
Nd2 {[%clk 0:02:28.5]} 11... Qh5 {[%clk 0:02:19.6]} 12. Rfe1 {[%clk 0:02:23.5]}
12... Rb8 {[%clk 0:02:15.3]} 13. Rab1 {[%clk 0:02:13.9]} 13... Qxf3 {[%clk
0:01:52.6]} 14. Nxf3 {[%clk 0:02:14.6]} 14... Be6 {[%clk 0:01:54.1]} 15. b3
{[%clk 0:02:04.2]} 15... a5 {[%clk 0:01:51.1]} 16. Bd2 {[%clk 0:01:58.3]} 16...
Bb4 {[%clk 0:01:48.8]} 17. c3 {[%clk 0:01:56.9]} 17... Bc5 {[%clk 0:01:44.7]}
18. b4 {[%clk 0:01:54.9]} 18... Bb6 {[%clk 0:01:42.3]} 19. a4 {[%clk 0:01:55.8]}
19... Bd7 {[%clk 0:01:37.4]} 20. e5 {[%clk 0:01:55.2]} 20... Nd5 {[%clk
0:01:36.2]} 21. exd6 {[%clk 0:01:34.4]} 21... Rxe1+ {[%clk 0:01:35.8]} 22. Rxe1
{[%clk 0:01:34.8]} 22... cxd6 {[%clk 0:01:37.3]} 23. Ng5 {[%clk 0:01:36]} 23...
h6 {[%clk 0:01:24.5]} 24. Ne4 {[%clk 0:01:36.9]} 24... axb4 {[%clk 0:00:56.9]}
25. cxb4 {[%clk 0:01:36.4]} 25... Bc7 {[%clk 0:00:58.6]} 26. Rb1 {[%clk
0:01:30.4]} 26... Kf8 {[%clk 0:00:53]} 27. a5 {[%clk 0:01:24.6]} 27... Ke7
{[%clk 0:00:52.3]} 28. a6 {[%clk 0:01:25.3]} 28... Kd8 {[%clk 0:00:48]} 29. Nc3
{[%clk 0:01:23.2]} 29... Nxc3 {[%clk 0:00:38.7]} 30. Bxc3 {[%clk 0:01:24.3]}
30... f6 {[%clk 0:00:40.5]} 31. a7 {[%clk 0:01:21.8]} 31... Ra8 {[%clk
0:00:40.5]} 32. Bd4 {[%clk 0:01:23.2]} 32... Be6 {[%clk 0:00:38.4]} 33. Ra1
{[%clk 0:01:15.7]} 33... Bd7 {[%clk 0:00:21.5]} 34. g4 {[%clk 0:01:10.3]} 34...
d5 {[%clk 0:00:19.7]} 35. Bc5 {[%clk 0:01:01.9]} 35... Bc8 {[%clk 0:00:19]} 36.
Re1 {[%clk 0:00:56.3]} 36... Be5 {[%clk 0:00:14.5]} 37. f4 {[%clk 0:00:57]}
37... Bxf4 {[%clk 0:00:14.1]} 38. Re7 {[%clk 0:00:57.9]} 38... g5 {[%clk
0:00:10.9]} 39. Bg6 {[%clk 0:00:52.4]} 39... Bd7 {[%clk 0:00:11.2]} 40. Rh7
{[%clk 0:00:49.4]} 40... Kc8 {[%clk 0:00:12.8]} 41. Bd3 {[%clk 0:00:48]} 41...
Kd8 {[%clk 0:00:05.9]} 42. Bb6+ {[%clk 0:00:48.5]} 42... Ke8 {[%clk 0:00:06.4]}
43. Bg6+ {[%clk 0:00:48.7]} 1-0

[Event "*** Titled Tuesday Blitz"]
[Site "Chess.com"]
[Date "2019.11.05"]
[Round "7"]
[White "RoelandPruijssers"]
[Black "pedroholly22"]
[Result "0-1"]
[WhiteElo "2636"]
[BlackElo "2418"]
[TimeControl "180+2"]
[EndTime "14:37:36 PST"]
[Termination "pedroholly22 won by resignation"]

1. e4 {[%clk 0:03:00.7]} 1... c5 {[%clk 0:02:59.7]} 2. Nf3 {[%clk 0:03:00.6]}
2... g6 {[%clk 0:03:01]} 3. d4 {[%clk 0:02:53.2]} 3... cxd4 {[%clk 0:03:02.9]}
4. Nxd4 {[%clk 0:02:53.9]} 4... Bg7 {[%clk 0:03:02.6]} 5. c4 {[%clk 0:02:54.6]}
5... Nc6 {[%clk 0:03:01.7]} 6. Be3 {[%clk 0:02:54.9]} 6... d6 {[%clk 0:03:00.3]}
7. Nc3 {[%clk 0:02:53.7]} 7... Nf6 {[%clk 0:03:00.5]} 8. Be2 {[%clk 0:02:54.5]}
8... O-O {[%clk 0:03:01.9]} 9. O-O {[%clk 0:02:54]} 9... Nxd4 {[%clk 0:02:56.9]}
10. Bxd4 {[%clk 0:02:54.5]} 10... Be6 {[%clk 0:02:58.8]} 11. f4 {[%clk
0:02:36.4]} 11... Rc8 {[%clk 0:02:59.2]} 12. b3 {[%clk 0:02:36.5]} 12... a6
{[%clk 0:03:00.1]} 13. Rc1 {[%clk 0:02:12.2]} 13... Qa5 {[%clk 0:02:56.5]} 14.
Qe1 {[%clk 0:01:52.6]} 14... Ne8 {[%clk 0:02:46.8]} 15. Bxg7 {[%clk 0:01:43.2]}
15... Nxg7 {[%clk 0:02:48.7]} 16. Bd3 {[%clk 0:01:24.6]} 16... b5 {[%clk
0:02:37.1]} 17. Nd5 {[%clk 0:01:20.2]} 17... Qd8 {[%clk 0:02:29.9]} 18. f5
{[%clk 0:01:07.7]} 18... Bxd5 {[%clk 0:02:23.3]} 19. exd5 {[%clk 0:01:06.8]}
19... bxc4 {[%clk 0:02:24.3]} 20. bxc4 {[%clk 0:01:06.1]} 20... Qb6+ {[%clk
0:02:23.3]} 21. Kh1 {[%clk 0:01:06.5]} 21... Qd4 {[%clk 0:02:24.1]} 22. Qe2
{[%clk 0:01:03.7]} 22... Rb8 {[%clk 0:02:20.5]} 23. Rc2 {[%clk 0:01:02.7]} 23...
Rb7 {[%clk 0:02:12.6]} 24. Rd2 {[%clk 0:00:59.3]} 24... Qc3 {[%clk 0:02:08.3]}
25. Rf3 {[%clk 0:00:54]} 25... Qa1+ {[%clk 0:02:01.8]} 26. Rd1 {[%clk
0:00:53.1]} 26... Qb2 {[%clk 0:02:02.2]} 27. Rd2 {[%clk 0:00:51.8]} 27... Qa1+
{[%clk 0:02:02.5]} 28. Rf1 {[%clk 0:00:53.2]} 28... Qc3 {[%clk 0:02:02.2]} 29.
Rc2 {[%clk 0:00:53.4]} 29... Qd4 {[%clk 0:02:03.1]} 30. Rd1 {[%clk 0:00:52]}
30... Qf6 {[%clk 0:01:55.3]} 31. fxg6 {[%clk 0:00:49.8]} 31... hxg6 {[%clk
0:01:55.8]} 32. c5 {[%clk 0:00:44.8]} 32... dxc5 {[%clk 0:01:53.8]} 33. Rxc5
{[%clk 0:00:39.5]} 33... Rb2 {[%clk 0:01:45.8]} 34. Qg4 {[%clk 0:00:28.5]} 34...
Rxa2 {[%clk 0:01:41.9]} 35. Rc6 {[%clk 0:00:19.9]} 35... Qe5 {[%clk 0:01:30.8]}
36. Rxa6 {[%clk 0:00:18.5]} 36... Rxa6 {[%clk 0:01:18.9]} 37. Bxa6 {[%clk
0:00:20.4]} 37... Nf5 {[%clk 0:01:19.5]} 38. Qe2 {[%clk 0:00:21.5]} 38... Qd6
{[%clk 0:01:16.9]} 39. Bc4 {[%clk 0:00:20.1]} 39... Kg7 {[%clk 0:01:15.7]} 40.
Qb2+ {[%clk 0:00:20.1]} 40... f6 {[%clk 0:01:16.1]} 41. Re1 {[%clk 0:00:19.6]}
41... Ng3+ {[%clk 0:01:02.8]} 42. hxg3 {[%clk 0:00:09.4]} 42... Rh8+ {[%clk
0:01:00.6]} 43. Kg1 {[%clk 0:00:10.2]} 43... Qc5+ {[%clk 0:01:00.6]} 44. Kf1
{[%clk 0:00:05.6]} 44... Rh1+ {[%clk 0:01:00.7]} 45. Ke2 {[%clk 0:00:05.5]}
45... Qxc4+ {[%clk 0:01:01.7]} 46. Kd2 {[%clk 0:00:06.7]} 46... Qxd5+ {[%clk
0:01:01.1]} 0-1

[Event "*** Titled Tuesday Blitz"]
[Site "Chess.com"]
[Date "2019.11.05"]
[Round "7"]
[White "ShahMatKanal"]
[Black "nitpicker"]
[Result "1-0"]
[WhiteElo "2528"]
[BlackElo "2309"]
[TimeControl "180+2"]
[EndTime "14:37:40 PST"]
[Termination "ShahMatKanal won on time"]

1. Nf3 {[%clk 0:03:01.9]} 1... Nf6 {[%clk 0:02:57.2]} 2. c4 {[%clk 0:03:00.6]}
2... Nc6 {[%clk 0:02:53.6]} 3. Nc3 {[%clk 0:03:01]} 3... e5 {[%clk 0:02:53.2]}
4. e4 {[%clk 0:02:59.6]} 4... a6 {[%clk 0:02:50.4]} 5. d3 {[%clk 0:02:54.5]}
5... h6 {[%clk 0:02:50.2]} 6. Be2 {[%clk 0:02:52.5]} 6... Bc5 {[%clk 0:02:50.7]}
7. h3 {[%clk 0:02:44.4]} 7... d6 {[%clk 0:02:50.7]} 8. Be3 {[%clk 0:02:44.1]}
8... Be6 {[%clk 0:02:44.4]} 9. Qd2 {[%clk 0:02:41]} 9... Qe7 {[%clk 0:02:22.2]}
10. d4 {[%clk 0:02:36]} 10... Nxd4 {[%clk 0:02:14.5]} 11. Nxd4 {[%clk
0:02:37.1]} 11... exd4 {[%clk 0:02:15.5]} 12. Bxd4 {[%clk 0:02:38.6]} 12... Bxd4
{[%clk 0:02:13.9]} 13. Qxd4 {[%clk 0:02:40.5]} 13... O-O {[%clk 0:02:04.7]} 14.
O-O {[%clk 0:02:29.5]} 14... Rfe8 {[%clk 0:01:55.6]} 15. b3 {[%clk 0:02:20.6]}
15... Rad8 {[%clk 0:01:55.2]} 16. f4 {[%clk 0:02:09.1]} 16... Bd7 {[%clk
0:01:55]} 17. Bf3 {[%clk 0:02:09.9]} 17... c5 {[%clk 0:01:42]} 18. Qd3 {[%clk
0:02:08.9]} 18... b5 {[%clk 0:01:26.6]} 19. Rae1 {[%clk 0:02:07.4]} 19... Bc6
{[%clk 0:01:22.6]} 20. Nd5 {[%clk 0:01:58]} 20... Bxd5 {[%clk 0:01:21.3]} 21.
cxd5 {[%clk 0:01:58.5]} 21... Qc7 {[%clk 0:01:16.7]} 22. Re2 {[%clk 0:01:48.9]}
22... Nd7 {[%clk 0:01:04.1]} 23. Rfe1 {[%clk 0:01:44.8]} 23... Rc8 {[%clk
0:00:55.8]} 24. Bg4 {[%clk 0:01:42.5]} 24... Rcd8 {[%clk 0:00:52.3]} 25. Bxd7
{[%clk 0:01:31.7]} 25... Qxd7 {[%clk 0:00:45.4]} 26. Rd2 {[%clk 0:01:24.5]}
26... Qc7 {[%clk 0:00:38.2]} 27. Qc3 {[%clk 0:01:22.7]} 27... f6 {[%clk
0:00:34.3]} 28. Re3 {[%clk 0:01:15.6]} 28... Re7 {[%clk 0:00:34.8]} 29. Rde2
{[%clk 0:01:14.9]} 29... Rde8 {[%clk 0:00:35.8]} 30. Qc2 {[%clk 0:01:00.4]}
30... Qb6 {[%clk 0:00:33.5]} 31. Kh2 {[%clk 0:01:00.3]} 31... Qc7 {[%clk
0:00:28.5]} 32. Rg3 {[%clk 0:00:58.6]} 32... f5 {[%clk 0:00:19.9]} 33. Rge3
{[%clk 0:00:55.4]} 33... fxe4 {[%clk 0:00:19.2]} 34. Rxe4 {[%clk 0:00:56.9]}
34... Rxe4 {[%clk 0:00:18.6]} 35. Rxe4 {[%clk 0:00:58.8]} 35... Qf7 {[%clk
0:00:16.9]} 36. f5 {[%clk 0:00:55.3]} 36... Kf8 {[%clk 0:00:14.4]} 37. Re6
{[%clk 0:00:55.9]} 37... Rxe6 {[%clk 0:00:10.6]} 38. dxe6 {[%clk 0:00:57.3]}
38... Qf6 {[%clk 0:00:08.4]} 39. a4 {[%clk 0:00:50.3]} 39... Qe5+ {[%clk
0:00:05.9]} 40. g3 {[%clk 0:00:51]} 40... Ke7 {[%clk 0:00:05.6]} 41. h4 {[%clk
0:00:39]} 41... Kf6 {[%clk 0:00:04.8]} 42. Kh3 {[%clk 0:00:34.9]} 1-0

[Event "*** Titled Tuesday Blitz"]
[Site "Chess.com"]
[Date "2019.11.05"]
[Round "7"]
[White "PotapovaM"]
[Black "politeplayer"]
[Result "0-1"]
[WhiteElo "2433"]
[BlackElo "2250"]
[TimeControl "180+2"]
[EndTime "14:37:44 PST"]
[Termination "politeplayer won by checkmate"]

1. d4 {[%clk 0:03:01.9]} 1... Nf6 {[%clk 0:02:58.8]} 2. c4 {[%clk 0:03:02.6]}
2... c5 {[%clk 0:02:59.9]} 3. d5 {[%clk 0:03:03]} 3... e6 {[%clk 0:03:01.2]} 4.
Nc3 {[%clk 0:03:03.6]} 4... exd5 {[%clk 0:03:02.3]} 5. cxd5 {[%clk 0:03:05.5]}
5... d6 {[%clk 0:03:03.7]} 6. Nf3 {[%clk 0:03:06]} 6... g6 {[%clk 0:03:04.6]} 7.
Bf4 {[%clk 0:03:06.7]} 7... Bg7 {[%clk 0:03:05.5]} 8. Qa4+ {[%clk 0:03:00.9]}
8... Bd7 {[%clk 0:03:06.4]} 9. Qb3 {[%clk 0:03:01.7]} 9... b5 {[%clk 0:03:07.6]}
10. Rd1 {[%clk 0:01:38]} 10... b4 {[%clk 0:02:46.9]} 11. Nb1 {[%clk 0:01:37.1]}
11... O-O {[%clk 0:01:57]} 12. Bxd6 {[%clk 0:01:32.6]} 12... Re8 {[%clk
0:01:28.2]} 13. e3 {[%clk 0:01:33.2]} 13... Qa5 {[%clk 0:01:21.9]} 14. Qc4
{[%clk 0:01:11.7]} 14... Ne4 {[%clk 0:01:09.9]} 15. Bxb8 {[%clk 0:01:08.3]}
15... Raxb8 {[%clk 0:01:06]} 16. Nbd2 {[%clk 0:00:58.2]} 16... Bb5 {[%clk
0:00:59.1]} 17. Qc1 {[%clk 0:00:46.8]} 17... Bxf1 {[%clk 0:00:52.2]} 18. Kxf1
{[%clk 0:00:42.2]} 18... Qxa2 {[%clk 0:00:50.4]} 19. Nc4 {[%clk 0:00:38.8]}
19... Qa6 {[%clk 0:00:42.8]} 20. b3 {[%clk 0:00:31.9]} 20... Nc3 {[%clk
0:00:38.3]} 21. Rd2 {[%clk 0:00:32.5]} 21... Rbd8 {[%clk 0:00:35.7]} 22. d6
{[%clk 0:00:32.5]} 22... Ne4 {[%clk 0:00:31.6]} 23. Rd5 {[%clk 0:00:22.3]} 23...
Rxd6 {[%clk 0:00:30.4]} 24. Qd1 {[%clk 0:00:09.8]} 24... Rxd5 {[%clk 0:00:28.8]}
25. Qxd5 {[%clk 0:00:09.6]} 25... Qa1+ {[%clk 0:00:27.7]} 26. Ne1 {[%clk
0:00:10.2]} 26... Bc3 {[%clk 0:00:27]} 27. Ke2 {[%clk 0:00:08.2]} 27... Bxe1
{[%clk 0:00:25.3]} 28. Rxe1 {[%clk 0:00:08]} 28... Nc3+ {[%clk 0:00:26]} 29. Kf3
{[%clk 0:00:05.5]} 29... Qxe1 {[%clk 0:00:25.5]} 30. Qd7 {[%clk 0:00:06.3]}
30... Qd1+ {[%clk 0:00:24.5]} 31. Qxd1 {[%clk 0:00:06.7]} 31... Nxd1 {[%clk
0:00:25.3]} 32. Nd6 {[%clk 0:00:08.6]} 32... Re6 {[%clk 0:00:23.7]} 33. Nb7
{[%clk 0:00:09.6]} 33... c4 {[%clk 0:00:24]} 34. bxc4 {[%clk 0:00:10.1]} 34...
b3 {[%clk 0:00:25.1]} 35. Nc5 {[%clk 0:00:12]} 35... b2 {[%clk 0:00:25.7]} 36.
Nxe6 {[%clk 0:00:12.9]} 36... fxe6 {[%clk 0:00:25.8]} 37. c5 {[%clk 0:00:13.9]}
37... b1=Q {[%clk 0:00:26.6]} 38. c6 {[%clk 0:00:15.2]} 38... Qc2 {[%clk
0:00:27.2]} 39. c7 {[%clk 0:00:17.1]} 39... Qxc7 {[%clk 0:00:27.9]} 40. Ke2
{[%clk 0:00:18.5]} 40... Qc2+ {[%clk 0:00:28.5]} 41. Kf3 {[%clk 0:00:20.4]}
41... Qxf2+ {[%clk 0:00:29.1]} 42. Kg4 {[%clk 0:00:22.3]} 42... Nxe3+ {[%clk
0:00:29]} 43. Kh3 {[%clk 0:00:24.2]} 43... Qxg2+ {[%clk 0:00:29.5]} 44. Kh4
{[%clk 0:00:25.5]} 44... Qg4# {[%clk 0:00:31]} 0-1

[Event "*** Titled Tuesday Blitz"]
[Site "Chess.com"]
[Date "2019.11.05"]
[Round "7"]
[White "ChessQueen"]
[Black "GrandGlacier"]
[Result "1-0"]
[WhiteElo "2681"]
[BlackElo "2520"]
[TimeControl "180+2"]
[EndTime "14:38:17 PST"]
[Termination "ChessQueen won by resignation"]

1. Nf3 {[%clk 0:03:01.9]} 1... g6 {[%clk 0:02:59.6]} 2. g3 {[%clk 0:03:00.8]}
2... Bg7 {[%clk 0:03:00.1]} 3. d4 {[%clk 0:03:02.1]} 3... Nf6 {[%clk 0:03:00.3]}
4. Bg2 {[%clk 0:03:03.3]} 4... c5 {[%clk 0:03:01]} 5. O-O {[%clk 0:03:03.3]}
5... cxd4 {[%clk 0:03:02]} 6. Nxd4 {[%clk 0:03:03.9]} 6... Nc6 {[%clk
0:03:03.2]} 7. c4 {[%clk 0:02:57]} 7... O-O {[%clk 0:03:03.7]} 8. Nc2 {[%clk
0:02:55.2]} 8... d6 {[%clk 0:03:03.8]} 9. Nc3 {[%clk 0:02:56.1]} 9... Be6 {[%clk
0:03:04.2]} 10. b3 {[%clk 0:02:53.1]} 10... Qa5 {[%clk 0:03:04.5]} 11. Bd2
{[%clk 0:02:36.6]} 11... Rfc8 {[%clk 0:03:03.9]} 12. Nb5 {[%clk 0:02:35.2]}
12... Qd8 {[%clk 0:03:04.6]} 13. e4 {[%clk 0:02:29.2]} 13... Rab8 {[%clk
0:02:59.5]} 14. Qe2 {[%clk 0:02:27.8]} 14... a6 {[%clk 0:02:59.9]} 15. Nc3
{[%clk 0:02:29]} 15... Nd7 {[%clk 0:02:30.4]} 16. Rad1 {[%clk 0:02:27.2]} 16...
Nd4 {[%clk 0:02:23.6]} 17. Nxd4 {[%clk 0:02:26.7]} 17... Bxd4 {[%clk 0:02:25.3]}
18. Be1 {[%clk 0:02:10.6]} 18... Bg7 {[%clk 0:01:55.9]} 19. f4 {[%clk
0:02:01.5]} 19... Nc5 {[%clk 0:01:53.8]} 20. f5 {[%clk 0:01:47.7]} 20... Bd7
{[%clk 0:01:54.3]} 21. Nd5 {[%clk 0:01:49.1]} 21... Bc6 {[%clk 0:01:54.9]} 22.
fxg6 {[%clk 0:01:37.2]} 22... hxg6 {[%clk 0:01:51.5]} 23. Qf3 {[%clk 0:01:35.6]}
23... Qe8 {[%clk 0:01:40.8]} 24. Bh3 {[%clk 0:01:30.1]} 24... Bd7 {[%clk
0:01:36.4]} 25. Bg2 {[%clk 0:01:25.2]} 25... Be6 {[%clk 0:01:32.6]} 26. Ba5
{[%clk 0:01:12]} 26... Bxd5 {[%clk 0:01:20.6]} 27. exd5 {[%clk 0:01:13.1]} 27...
Nd7 {[%clk 0:01:20.3]} 28. Bh3 {[%clk 0:01:09.4]} 28... Ne5 {[%clk 0:01:18.6]}
29. Qf2 {[%clk 0:01:10.4]} 29... Rc5 {[%clk 0:01:03.5]} 30. Bb6 {[%clk
0:01:09.8]} 30... Rbc8 {[%clk 0:00:37.5]} 31. Bxc8 {[%clk 0:01:00.9]} 31... Rxc8
{[%clk 0:00:38.1]} 32. Kh1 {[%clk 0:00:58]} 32... Qd7 {[%clk 0:00:37.9]} 33. Bd4
{[%clk 0:00:52.7]} 33... Rf8 {[%clk 0:00:38.5]} 34. Qe2 {[%clk 0:00:51.5]} 34...
Qh3 {[%clk 0:00:33.2]} 35. Rf4 {[%clk 0:00:50.7]} 35... Qd7 {[%clk 0:00:27]} 36.
Rdf1 {[%clk 0:00:50.1]} 36... f5 {[%clk 0:00:27.3]} 37. Bxe5 {[%clk 0:00:42.6]}
37... dxe5 {[%clk 0:00:24]} 38. R4f2 {[%clk 0:00:41.2]} 38... e4 {[%clk
0:00:24.5]} 39. g4 {[%clk 0:00:40.5]} 39... e6 {[%clk 0:00:24.5]} 40. dxe6
{[%clk 0:00:40.9]} 40... Qxe6 {[%clk 0:00:25.6]} 41. gxf5 {[%clk 0:00:42.4]}
41... gxf5 {[%clk 0:00:16.1]} 42. Rg2 {[%clk 0:00:38.3]} 42... Rf7 {[%clk
0:00:16.9]} 43. Rd1 {[%clk 0:00:35.6]} 43... Qf6 {[%clk 0:00:09.3]} 44. c5
{[%clk 0:00:31.9]} 44... Kh7 {[%clk 0:00:04.2]} 45. Qh5+ {[%clk 0:00:32.4]}
45... Bh6 {[%clk 0:00:04.9]} 46. Rd6 {[%clk 0:00:31.3]} 46... Qa1+ {[%clk
0:00:05.7]} 47. Rg1 {[%clk 0:00:32.8]} 47... Qxg1+ {[%clk 0:00:02.2]} 48. Kxg1
{[%clk 0:00:34]} 48... Rg7+ {[%clk 0:00:02.7]} 49. Kf1 {[%clk 0:00:35.2]} 1-0

[Event "*** Titled Tuesday Blitz"]
[Site "Chess.com"]
[Date "2019.11.05"]
[Round "7"]
[White "Marcus_Harvey"]
[Black "Tolya2"]
[Result "1-0"]
[WhiteElo "2630"]
[BlackElo "2400"]
[TimeControl "180+2"]
[EndTime "14:38:20 PST"]
[Termination "Marcus_Harvey won by resignation"]

1. d4 {[%clk 0:03:01.9]} 1... d5 {[%clk 0:02:59.8]} 2. Nf3 {[%clk 0:03:03.4]}
2... Nf6 {[%clk 0:02:57.6]} 3. Bf4 {[%clk 0:03:03.4]} 3... e6 {[%clk 0:02:55]}
4. e3 {[%clk 0:03:04.3]} 4... Bd6 {[%clk 0:02:55.7]} 5. Bxd6 {[%clk 0:03:03.6]}
5... Qxd6 {[%clk 0:02:55.9]} 6. Nbd2 {[%clk 0:03:04.6]} 6... c5 {[%clk
0:02:56.6]} 7. c4 {[%clk 0:03:05]} 7... cxd4 {[%clk 0:02:55.5]} 8. Nxd4 {[%clk
0:03:05.5]} 8... O-O {[%clk 0:02:54.5]} 9. cxd5 {[%clk 0:03:05.7]} 9... Nxd5
{[%clk 0:02:53.4]} 10. Bc4 {[%clk 0:03:04.8]} 10... Nb6 {[%clk 0:02:52]} 11. Bb3
{[%clk 0:03:03.9]} 11... Bd7 {[%clk 0:02:49.7]} 12. Ne4 {[%clk 0:03:00.9]} 12...
Qe7 {[%clk 0:02:49]} 13. h4 {[%clk 0:02:52.1]} 13... Nc6 {[%clk 0:02:48.8]} 14.
h5 {[%clk 0:02:51.7]} 14... h6 {[%clk 0:02:46]} 15. O-O {[%clk 0:02:44.2]} 15...
Rfd8 {[%clk 0:02:45]} 16. Nb5 {[%clk 0:02:39.9]} 16... Ne5 {[%clk 0:02:37.1]}
17. Qd6 {[%clk 0:02:31.1]} 17... Qxd6 {[%clk 0:02:27.5]} 18. Nbxd6 {[%clk
0:02:33]} 18... Bc6 {[%clk 0:02:22.2]} 19. Rfd1 {[%clk 0:02:34.1]} 19... Kf8
{[%clk 0:02:19.2]} 20. Nc5 {[%clk 0:02:32.8]} 20... Rab8 {[%clk 0:02:15.5]} 21.
Rd4 {[%clk 0:01:49.9]} 21... Ke7 {[%clk 0:02:13.5]} 22. Rad1 {[%clk 0:01:50.9]}
22... Nd5 {[%clk 0:02:02]} 23. Nc4 {[%clk 0:01:37.9]} 23... Nxc4 {[%clk
0:01:54.3]} 24. Bxc4 {[%clk 0:01:39.8]} 24... Nf6 {[%clk 0:01:52.2]} 25. Be2
{[%clk 0:01:34.3]} 25... Rxd4 {[%clk 0:01:49.5]} 26. Rxd4 {[%clk 0:01:35]} 26...
Rd8 {[%clk 0:01:48.7]} 27. Nb3 {[%clk 0:01:34.9]} 27... Bd5 {[%clk 0:01:43.7]}
28. Rb4 {[%clk 0:01:14.4]} 28... b6 {[%clk 0:01:43.2]} 29. Nd4 {[%clk
0:01:15.4]} 29... Rc8 {[%clk 0:01:39.5]} 30. Ra4 {[%clk 0:01:13.8]} 30... a5
{[%clk 0:01:38.7]} 31. b4 {[%clk 0:01:07.8]} 31... axb4 {[%clk 0:01:26.5]} 32.
Rxb4 {[%clk 0:01:08.8]} 32... Nd7 {[%clk 0:01:26.6]} 33. a4 {[%clk 0:01:04.8]}
33... Rc1+ {[%clk 0:01:24.9]} 34. Kh2 {[%clk 0:01:05.1]} 34... Ra1 {[%clk
0:01:24.1]} 35. Bb5 {[%clk 0:01:03.4]} 35... Nc5 {[%clk 0:01:14.9]} 36. Bc6
{[%clk 0:01:00.3]} 36... Bxc6 {[%clk 0:01:09.8]} 37. Nxc6+ {[%clk 0:01:01]}
37... Kd6 {[%clk 0:01:10.8]} 38. Nd4 {[%clk 0:00:53.3]} 38... Kc7 {[%clk
0:01:06.5]} 39. Nb5+ {[%clk 0:00:49.8]} 39... Kc6 {[%clk 0:01:06.8]} 40. Rg4
{[%clk 0:00:49.3]} 40... Rxa4 {[%clk 0:01:03.5]} 41. Nd4+ {[%clk 0:00:50.5]}
41... Kd6 {[%clk 0:00:59.1]} 42. Rxg7 {[%clk 0:00:51.4]} 42... Ke7 {[%clk
0:00:56.2]} 43. Rh7 {[%clk 0:00:50.1]} 43... Ne4 {[%clk 0:00:56.5]} 44. f3
{[%clk 0:00:51.3]} 44... Nf6 {[%clk 0:00:55.4]} 45. Rxh6 {[%clk 0:00:52.4]}
45... Nd5 {[%clk 0:00:56.3]} 46. Nc6+ {[%clk 0:00:36.5]} 46... Kd6 {[%clk
0:00:55]} 47. e4 {[%clk 0:00:37.6]} 47... Kxc6 {[%clk 0:00:53.5]} 48. exd5+
{[%clk 0:00:39]} 48... Kxd5 {[%clk 0:00:54.5]} 49. Kg3 {[%clk 0:00:36]} 49...
Ra8 {[%clk 0:00:48.7]} 50. Rf6 {[%clk 0:00:36.7]} 50... Ra7 {[%clk 0:00:47.4]}
51. h6 {[%clk 0:00:37.1]} 51... Ke5 {[%clk 0:00:48]} 52. h7 {[%clk 0:00:38.4]}
52... Ra8 {[%clk 0:00:48.4]} 53. Rxf7 {[%clk 0:00:39.8]} 53... Rb8 {[%clk
0:00:47.9]} 54. Kh4 {[%clk 0:00:34.6]} 54... b5 {[%clk 0:00:48.3]} 55. Kg5
{[%clk 0:00:33.4]} 55... b4 {[%clk 0:00:49.2]} 56. Rd7 {[%clk 0:00:34.5]} 56...
b3 {[%clk 0:00:49.5]} 57. Rd1 {[%clk 0:00:35.4]} 57... Rg8+ {[%clk 0:00:39.5]}
58. hxg8=Q {[%clk 0:00:35.5]} 1-0